bitfinex/quotes_ETHUSD_20260207
["timestamp","ask_amount","ask_price","bid_price","bid_amount"]
[1770429022429,5.3102893,2063.1,2061.9,4.84966052]
[1770429022850,4.09852061,2063.0,2061.9,4.84966052]
[1770429023050,1.21176869,2063.1,2061.9,4.84966052]
[1770429023051,1.21176869,2063.1,2062.0,3.96507742]
[1770429023443,4.09852061,2063.0,2061.9,4.84966052]
[1770429024063,4.09852061,2063.0,2061.8,1.2124888]
[1770429024288,4.09852061,2062.8,2061.6,1.21264894]
[1770429024474,4.09852061,2062.6,2061.4,0.001]
[1770429025484,4.14244019,2062.6,2061.4,0.001]
[1770429025975,4.09852061,2062.2,2061.1,0.001]
[1770429026547,4.14244019,2062.0,2061.1,0.001]
[1770429026748,4.09852061,2061.8,2061.1,0.001]
[1770429026949,4.09852061,2061.6,2060.3,0.001]
[1770429027181,4.09852061,2061.3,2060.3,0.001]
[1770429028761,1.21288569,2061.2,2060.3,0.001]
[1770429028956,4.09852061,2061.1,2060.3,0.001]
[1770429029151,0.53114063,2061.0,2060.3,0.001]
[1770429030167,4.62966124,2061.0,2060.3,0.001]
[1770429030480,4.09852061,2061.0,2060.5,0.001]
[1770429030647,4.09852061,2061.0,2060.3,0.001]
[1770429030954,4.09852061,2061.0,2060.1,0.001]
[1770429030955,4.09852061,2060.8,2060.1,0.001]
[1770429031159,0.53115829,2060.7,2060.1,0.001]
[1770429032246,1.21302261,2061.0,2060.1,0.001]
[1770429033949,5.31154322,2061.0,2060.1,0.001]
[1770429034987,4.09852061,2060.9,2060.1,0.001]
[1770429035167,1.21312111,2060.8,2060.1,0.001]
[1770429035366,1.01641262,2060.7,2060.1,0.001]
[1770429036666,5.3116288,2060.9,2060.1,0.001]
[1770429037184,4.85201358,2061.2,2060.1,0.001]
[1770429037185,4.01386295,2061.2,2060.1,0.001]
[1770429038483,4.01386295,2061.2,2060.1,3.85080756]
[1770429038687,1.21265036,2061.6,2060.1,3.85080756]
[1770429038863,5.4300007,2061.9,2060.3,3.84980756]
[1770429038864,0.53547965,2061.9,2060.3,3.84980756]
[1770429039182,5.22621928,2062.1,2060.7,3.84980756]
[1770429040084,4.01386295,2062.0,2060.6,1.21323886]
[1770429040256,4.01386295,2061.6,2060.3,1.21337006]
[1770429040453,4.01386295,2061.6,2060.4,1.21335449]
[1770429040454,4.01386295,2061.4,2060.4,1.21335449]
[1770429040678,4.01386295,2061.4,2060.2,1.21344346]
[1770429041056,4.01386295,2061.4,2060.5,1.21326485]
[1770429041258,1.21282685,2061.3,2060.1,3.85080756]
[1770429041681,4.85069705,2061.6,2060.3,3.84980756]
[1770429041881,1.21265036,2061.6,2060.4,4.78869932]
[1770429042089,4.01386295,2061.5,2060.4,3.84980756]
[1770429042565,0.002,2061.2,2060.4,3.84980756]
[1770429042764,0.002,2061.2,2060.3,0.001]
[1770429042970,4.01586295,2061.2,2060.3,0.001]
[1770429043397,1.21294454,2061.1,2060.3,0.001]
[1770429043588,1.00805857,2061.0,2060.3,0.001]
[1770429044886,4.01386295,2060.9,2060.3,0.001]
[1770429045568,4.01386295,2060.7,2060.3,0.001]
[1770429045772,4.01386295,2060.7,2060.1,0.001]
[1770429047888,5.22710181,2060.6,2060.1,0.001]
[1770429048063,1.00800572,2060.5,2060.1,0.001]
[1770429048571,4.85262054,2060.8,2060.1,0.001]
[1770429049333,1.21312111,2060.8,2060.1,0.001]
[1770429050009,0.002,2061.2,2060.1,3.85080756]
[1770429050500,1.21489249,2061.2,2060.1,3.85080756]
[1770429050705,1.21489249,2061.2,2060.2,0.38518076]
[1770429050910,0.37988988,2061.9,2060.2,0.38518076]
[1770429050911,0.002,2062.3,2061.9,0.1024]
[1770429051077,4.01386295,2064.4,2061.9,0.1024]
[1770429051078,4.84498203,2064.0,2063.1,2.388575]
[1770429051274,11.33581838,2064.7,2062.1,3.84980756]
[1770429051275,0.00286487,2063.2,2062.1,3.84980756]
[1770429051496,4.05778253,2063.6,2063.1,8.048101]
[1770429051677,4.05778253,2063.6,2062.2,0.38498076]
[1770429051678,4.0606474,2063.6,2062.2,0.38498076]
[1770429051889,4.0606474,2063.6,2061.7,3.84980756]
[1770429052074,1.2143749,2063.6,2061.9,3.84980756]
[1770429052399,0.00286487,2063.6,2062.3,3.84980756]
[1770429052595,5.47818471,2064.5,2062.7,3.84980756]
[1770429052783,4.01386295,2064.3,2062.7,1.87579296]
[1770429052984,4.05778253,2064.3,2062.6,3.84980756]
[1770429053178,0.00286487,2064.2,2062.8,3.84980756]
[1770429053369,0.00286487,2064.2,2062.1,0.04391958]
[1770429053370,4.05778253,2064.0,2062.3,3.84980756]
[1770429053699,4.05778253,2063.7,2062.3,3.84980756]
[1770429053898,0.00286487,2063.9,2062.3,3.84980756]
[1770429054099,4.01386295,2063.7,2062.4,1.21217998]
[1770429054296,4.05778253,2063.7,2062.3,3.84980756]
[1770429054504,4.01386295,2063.4,2062.3,1.21223068]
[1770429054672,0.00286487,2063.6,2062.3,1.21223068]
[1770429054872,4.01672782,2063.6,2062.3,1.21223068]
[1770429055073,0.40167278,2063.5,2062.3,2.30326692]
[1770429055405,0.40167278,2063.5,2062.4,3.84980756]
[1770429055608,0.00286487,2063.4,2062.4,3.84980756]
[1770429055814,4.01672782,2063.8,2062.4,3.84980756]
[1770429055999,5.22809382,2063.8,2062.5,1.21212121]
[1770429056198,0.00286487,2063.7,2062.5,1.21212121]
[1770429056585,0.001,2063.4,2062.5,1.21212121]
[1770429056893,0.001,2063.4,2062.6,0.99104136]
[1770429057089,0.00286487,2063.3,2062.6,0.99104136]
[1770429057703,4.84477562,2064.1,2062.6,4.84084892]
[1770429058115,1.21118162,2064.1,2062.7,1.21200368]
[1770429058314,0.14631958,2064.6,2062.7,1.21200368]
[1770429058315,1.00982542,2064.0,2062.9,8.89605256]
[1770429058486,0.00286487,2064.5,2063.0,3.84980756]
[1770429059294,0.00286487,2064.5,2063.1,0.04391958]
[1770429059793,0.00286487,2064.5,2063.1,3.89372714]
[1770429060214,0.00286487,2064.5,2063.2,1.21170996]
[1770429060416,0.00286487,2064.5,2063.4,0.04391958]
[1770429060417,0.64119594,2064.5,2063.4,0.04391958]
[1770429060622,4.01386295,2064.3,2062.8,1.09008673]
[1770429060917,4.01672782,2064.2,2062.9,1.21187895]
[1770429061093,4.01672782,2064.2,2063.0,1.21179206]
[1770429061695,4.01672782,2064.1,2062.9,1.21185155]
[1770429062004,4.01386295,2064.1,2062.9,1.21185155]
[1770429062315,1.21124031,2064.0,2062.7,1.21200368]
[1770429062519,0.52251033,2063.9,2062.7,2.68781512]
[1770429062889,4.01672782,2063.8,2062.6,1.21205526]
[1770429063122,4.01672782,2063.8,2062.6,1.21205784]
[1770429063998,0.00286487,2063.7,2062.6,1.21205784]
[1770429064332,0.00286487,2063.7,2062.5,8.69828142]
[1770429064522,0.00286487,2063.6,2062.6,1.35465312]
[1770429064722,0.00286487,2063.8,2063.2,3.89372714]
[1770429065018,5.16938543,2064.7,2063.2,3.89372714]
[1770429065019,0.00286487,2064.5,2063.2,3.89372714]
[1770429066117,0.00286487,2064.5,2063.3,1.21165123]
[1770429066292,0.00286487,2064.5,2063.3,5.26425121]
[1770429066493,0.00286487,2064.5,2063.4,1.01547757]
[1770429067221,0.00286487,2064.5,2063.4,5.06807755]
[1770429067521,0.00286487,2064.5,2063.5,4.09651956]
[1770429068447,0.1278398,2066.9,2064.6,3.95418766]
[1770429068599,4.03238591,2066.1,2065.2,0.25305273]
[1770429068796,4.4356245,2066.0,2065.2,0.25305273]
[1770429069013,0.40323859,2066.0,2064.4,3.99810724]
[1770429069224,0.29696999,2066.6,2064.7,3.95418766]
[1770429069403,4.03238591,2066.4,2064.7,3.95418766]
[1770429070424,4.03238591,2066.4,2064.8,1.21077101]
[1770429070425,1.20989207,2066.3,2064.8,1.21077101]
[1770429070595,5.24227798,2066.3,2064.8,1.21077101]
[1770429070928,1.00818463,2066.2,2064.9,1.00080427]
[1770429071427,1.00818463,2066.2,2065.0,3.95418766]
[1770429071608,1.2098443,2066.4,2065.0,3.95418766]
[1770429072504,8.87172001,2066.6,2065.1,1.21059512]
[1770429073323,1.20959938,2066.8,2065.2,3.95418766]
[1770429073524,5.24198529,2066.8,2065.2,3.95418766]
[1770429073704,4.03238591,2066.7,2065.2,3.95418766]
[1770429073903,0.52419853,2066.6,2065.2,1.00071633]
[1770429074122,4.55658444,2066.6,2065.1,1.21059512]
[1770429074500,1.20977498,2066.5,2065.0,4.84238051]
[1770429074903,5.24216089,2066.5,2065.0,4.84238051]
[1770429075097,4.03238591,2066.4,2065.0,1.21065375]
[1770429075311,4.03238591,2066.3,2064.9,1.21070296]
[1770429076199,4.03238591,2066.3,2064.9,1.25462254]
[1770429076401,1.06054593,2066.4,2065.2,0.04391958]
[1770429076632,1.20986906,2066.4,2064.9,5.16489062]
[1770429076828,1.20986906,2066.4,2064.9,1.21070296]
[1770429077131,4.03238591,2066.3,2064.8,1.21077049]
[1770429077432,4.03238591,2066.3,2064.9,1.21070125]
[1770429077637,4.03238591,2066.1,2064.1,3.99810724]
[1770429077820,4.03238591,2065.9,2064.5,1.21094044]
[1770429078149,4.03238591,2065.9,2064.3,4.84409011]
[1770429078150,4.03238591,2065.9,2064.2,4.84435156]
[1770429078302,4.03238591,2065.9,2064.2,1.21108738]
[1770429078631,4.03238591,2065.9,2064.1,4.84469995]
[1770429078632,4.03238591,2065.7,2064.1,1.2551012]
[1770429078839,0.52425708,2065.6,2064.2,1.34736796]
[1770429079013,0.52425708,2065.6,2064.2,5.30155562]
[1770429079219,1.21006776,2066.0,2064.7,0.04391958]
[1770429079705,0.52419853,2066.6,2065.7,0.04391958]
[1770429079908,1.33742634,2066.9,2065.7,0.04391958]
[1770429080614,1.33742634,2066.9,2065.8,1.21018491]
[1770429081531,0.1278398,2066.9,2066.0,0.04391958]
[1770429082112,0.1278398,2066.9,2066.1,3.99810724]
[1770429082419,1.33738489,2066.9,2066.1,0.04391958]
[1770429082623,1.33738489,2066.9,2065.8,1.21018491]
[1770429082624,1.95493972,2066.9,2065.8,1.21018491]
[1770429082932,1.95493972,2066.9,2066.0,0.04391958]
[1770429083133,1.95493972,2066.9,2065.7,1.21020163]
[1770429083435,1.95493972,2066.9,2065.7,1.25412121]
[1770429085231,1.95493972,2066.9,2065.7,1.21020163]
[1770429085532,0.67931032,2066.8,2065.7,1.21020163]
[1770429085735,4.71169623,2066.8,2065.0,0.04391958]
[1770429085911,4.71169623,2066.8,2065.3,1.21042002]
[1770429086233,4.71169623,2066.8,2065.5,1.21034511]
[1770429086440,0.66666359,2066.7,2065.4,1.21039386]
[1770429086665,0.66666359,2066.7,2065.3,1.21043983]
[1770429086815,4.6990495,2066.7,2065.3,1.21044963]
[1770429087015,5.24210235,2066.6,2065.1,1.21059512]
[1770429087315,1.20971644,2066.6,2065.3,3.99810724]
[1770429087522,0.73577134,2066.5,2065.4,0.39981072]
[1770429087706,0.73577134,2066.5,2065.6,0.04391958]
[1770429088934,1.20983352,2066.4,2065.5,1.21036068]
[1770429089128,0.67848809,2066.3,2065.5,2.73513115]
[1770429089940,0.67848809,2066.3,2065.4,0.4437303]
[1770429090158,0.67848809,2066.3,2065.4,1.25433348]
[1770429090634,0.67848809,2066.3,2065.4,0.04391958]
[1770429090835,0.67848809,2066.3,2065.4,1.25433495]
[1770429091137,1.20995063,2066.2,2065.1,1.21055922]
[1770429091341,1.20995063,2066.2,2065.0,0.04391958]
[1770429091536,0.60573033,2066.1,2065.0,0.04391958]
[1770429091738,4.63811624,2066.1,2064.9,0.04391958]
[1770429091940,4.63811624,2066.1,2064.9,1.25459055]
[1770429092140,4.63811624,2066.1,2064.9,1.25459525]
[1770429092714,0.2335703,2066.0,2064.4,1.21098853]
[1770429092926,4.03238591,2065.7,2064.3,1.21106428]
[1770429093112,4.03238591,2065.7,2064.2,2.55847553]
[1770429093318,4.03238591,2065.7,2064.2,1.34736796]
[1770429094517,4.03238591,2065.7,2064.2,2.5584904]
[1770429094716,4.03238591,2065.7,2064.2,2.55846932]
[1770429094916,1.21041928,2065.4,2064.2,2.55846932]
[1770429095147,5.24280519,2065.4,2064.2,2.55846932]
[1770429095917,1.21041928,2065.4,2064.2,2.55846932]
[1770429096460,1.21041928,2065.4,2064.4,0.04391958]
[1770429096934,1.21041928,2065.4,2064.2,2.55846932]
[1770429097133,0.60520964,2065.3,2064.4,1.21100561]
[1770429097727,0.60520964,2065.3,2064.3,1.95573857]
[1770429099051,5.04200208,2065.2,2064.0,7.37385185]
[1770429099230,3.83146558,2065.1,2064.0,7.37385185]
[1770429101019,3.83146558,2065.1,2064.0,8.58508646]
[1770429101368,1.21065375,2065.0,2064.0,8.58508646]
[1770429101666,2.10117679,2065.0,2064.1,1.34301329]
[1770429102017,2.10117679,2065.0,2064.0,7.37385185]
[1770429102224,3.83146558,2064.9,2064.0,7.37385185]
[1770429102444,3.83146558,2064.9,2064.0,2.87813814]
[1770429102719,3.83146558,2064.9,2063.6,0.0011]
[1770429103238,1.21077101,2064.8,2063.7,0.04391958]
[1770429103540,0.67931032,2064.7,2063.7,0.04391958]
[1770429104526,0.67931032,2064.7,2063.7,1.25533457]
[1770429105318,4.84302617,2064.9,2064.0,3.92914475]
[1770429105957,1.21071238,2064.9,2064.3,0.04391958]
[1770429106453,1.21071238,2064.9,2064.0,3.92914475]
[1770429107036,1.21071238,2064.9,2063.9,0.001]
[1770429107551,1.11071238,2064.9,2063.9,0.001]
[1770429107734,0.68439874,2064.8,2063.9,0.001]
[1770429107932,0.68439874,2064.8,2064.0,0.04391958]
[1770429108355,1.11071238,2064.9,2064.0,3.92914475]
[1770429109452,1.11071238,2064.9,2064.0,5.14035678]
[1770429110050,1.21036068,2065.5,2064.3,3.92914475]
[1770429110560,1.21036068,2065.5,2064.6,0.04391958]
[1770429110765,1.21036068,2065.5,2064.0,1.2551583]
[1770429110766,0.60517576,2065.4,2064.0,1.2551583]
[1770429110930,0.60517576,2065.4,2063.9,5.09747897]
[1770429111130,4.43664134,2065.4,2063.9,8.73141678]
[1770429111441,1.21047789,2065.3,2063.9,5.09749815]
[1770429111629,0.66575652,2065.2,2064.0,0.99867262]
[1770429113341,0.70000001,2065.1,2064.0,0.99867262]
[1770429114052,1.21065375,2065.0,2064.0,0.99867262]
[1770429114634,1.21065375,2065.0,2064.0,2.20990982]
[1770429115559,1.21065375,2065.0,2064.0,6.09513499]
[1770429115758,1.21065375,2065.0,2064.1,1.09412081]
[1770429116470,0.70000001,2065.0,2064.2,1.21112295]
[1770429117137,0.70000001,2065.0,2064.1,1.13804039]
[1770429117337,0.70000001,2065.0,2064.1,2.34920081]
[1770429117664,0.70000001,2065.0,2064.1,6.23442598]
[1770429117961,0.70000001,2065.0,2064.2,3.88522517]
[1770429118345,1.21071238,2064.9,2064.2,5.09630588]
[1770429119044,1.21071238,2064.9,2064.2,5.09730588]
[1770429119962,1.21071238,2064.9,2064.2,0.001]
[1770429120346,4.84284953,2065.1,2064.2,0.001]
[1770429120539,1.03514556,2065.0,2064.2,0.001]
[1770429120860,0.70000001,2064.8,2064.2,0.001]
[1770429122561,1.21082966,2064.7,2064.2,0.001]
[1770429122744,5.54316781,2064.8,2064.2,3.88622517]
[1770429122745,1.91077416,2064.8,2064.2,3.88622517]
[1770429122951,1.91077416,2064.8,2064.3,0.39301448]
[1770429123164,0.70000001,2064.8,2064.3,0.39301448]
[1770429124478,1.91077645,2064.8,2064.3,0.39301448]
[1770429124970,1.91077645,2064.8,2064.2,0.001]
[1770429127567,6.04600615,2064.8,2064.2,0.001]
[1770429127740,4.1352297,2064.7,2063.9,0.001]
[1770429128369,4.0852297,2064.7,2063.9,0.001]
[1770429128574,4.1475605,2064.4,2063.9,0.001]
[1770429129256,4.1475605,2064.4,2063.4,0.0011]
[1770429130678,1.21106428,2064.3,2063.4,0.0011]
[1770429131056,1.91106429,2064.3,2063.4,0.0011]
[1770429131383,1.09028819,2064.2,2063.4,0.0011]
[1770429132187,5.23784869,2064.2,2062.8,4.11792489]
[1770429132481,5.23784869,2064.2,2064.1,0.001]
[1770429132659,4.1475605,2064.1,2062.8,4.11792489]
[1770429132978,4.7924518,2064.1,2063.3,0.001]
[1770429133178,4.7924518,2064.1,2062.6,5.32998093]
[1770429133380,4.7924518,2064.1,2062.6,5.3299513]
[1770429133583,4.7924518,2064.1,2062.6,4.11792489]
[1770429133759,0.70938629,2064.0,2062.7,0.53750253]
[1770429134458,5.5569468,2064.0,2062.7,0.53750253]
[1770429134661,4.3811308,2063.8,2062.5,0.0011]
[1770429134880,1.21129899,2063.9,2062.7,4.11792489]
[1770429138093,0.70000001,2063.8,2062.7,4.11792489]
[1770429138898,0.70000001,2063.8,2062.9,4.16184447]
[1770429139063,1.21141638,2063.7,2063.1,4.11792489]
[1770429139426,1.21141638,2063.7,2063.1,4.65529333]
[1770429139615,1.21141638,2063.7,2062.5,4.11902489]
[1770429139891,4.1475605,2063.6,2062.5,0.0011]
[1770429141267,1.2115338,2063.5,2062.5,0.0011]
[1770429141464,1.02052295,2063.4,2062.5,0.0011]
[1770429142696,0.70000001,2063.3,2062.5,0.0011]
[1770429143500,1.21170996,2063.2,2062.5,0.0011]
[1770429144567,1.21170996,2063.2,2062.7,0.001]
[1770429145499,4.84683986,2063.3,2062.7,0.001]
[1770429145714,0.96939084,2063.2,2062.7,0.001]
[1770429146623,1.66939085,2063.2,2062.7,0.001]
[1770429147589,1.21176869,2063.1,2062.7,0.001]
[1770429148280,1.21176869,2063.1,2062.5,0.0011]
[1770429148991,1.21176869,2063.1,2062.5,4.11902489]
[1770429149509,1.92115498,2063.1,2062.5,4.11902489]
[1770429150509,0.70000001,2063.0,2062.5,4.11902489]
[1770429151491,1.21188617,2062.9,2062.5,0.0011]
[1770429152309,1.21188617,2062.9,2061.9,4.11902489]
[1770429152478,5.35944667,2062.9,2061.9,4.11902489]
[1770429152680,1.02052295,2062.8,2062.1,4.11792489]
[1770429153330,1.02052295,2062.8,2061.9,0.53426099]
[1770429153503,1.21200368,2062.7,2061.9,0.53426099]
[1770429153703,1.21200368,2062.7,2061.9,4.65218588]
[1770429154126,1.21200368,2062.7,2061.9,4.11902489]
[1770429154306,1.21181107,2063.1,2062.0,4.11792489]
[1770429154503,0.70000001,2062.6,2062.0,4.11792489]
[1770429155429,0.70000001,2062.6,2061.9,0.0011]
[1770429155636,1.21212121,2062.5,2061.9,0.53864743]
[1770429155803,1.21212121,2062.5,2061.9,5.92922874]
[1770429156197,1.21212121,2062.5,2062.1,0.001]
[1770429156837,1.91210069,2062.6,2062.1,4.17911282]
[1770429158431,1.21375579,2063.2,2062.2,4.17811282]
[1770429158638,1.21375579,2063.2,2062.4,4.17811282]
[1770429160439,0.002,2063.2,2062.5,4.17811282]
[1770429161720,0.002,2063.2,2062.3,1.7557341]
[1770429162117,0.002,2063.2,2062.4,1.21217207]
[1770429162912,0.002,2063.2,2062.3,1.75572852]
[1770429163115,0.64081975,2063.2,2062.4,0.66048608]
[1770429164644,0.64081975,2063.2,2062.1,0.001]
[1770429164645,4.6047241,2063.2,2062.1,0.001]
[1770429165033,3.96390435,2063.0,2062.1,0.001]
[1770429165539,1.21176869,2063.1,2062.1,0.001]
[1770429165540,3.96390435,2062.8,2062.1,0.001]
[1770429166115,3.96390435,2062.8,2061.6,0.0011]
[1770429167137,3.96390435,2062.6,2061.6,0.0011]
[1770429167349,4.48149515,2062.5,2061.6,0.0011]
[1770429169247,1.21217998,2062.4,2061.6,0.0011]
[1770429169532,1.21217998,2062.4,2061.8,0.001]
[1770429170555,5.17608433,2062.4,2061.8,0.001]
[1770429171661,1.21217998,2062.4,2061.8,0.001]
[1770429171973,2.35510104,2062.4,2061.8,0.001]
[1770429172746,1.21217998,2062.4,2061.8,4.17911282]
[1770429173363,0.002,2062.6,2061.8,5.39163114]
[1770429174067,0.002,2062.6,2061.8,1.21351832]
[1770429174268,0.002,2062.6,2061.9,4.17811282]
[1770429177169,0.002,2062.6,2062.0,5.39052795]
[1770429177369,0.002,2062.6,2062.1,1.02402231]
[1770429178175,0.002,2062.6,2062.1,5.20213513]
[1770429179967,0.002,2062.6,2062.1,6.41448386]
[1770429180975,0.002,2062.6,2062.2,4.17811282]
[1770429181759,0.002,2062.6,2062.1,2.23637104]
[1770429182672,0.002,2062.6,2062.2,1.82411675]
[1770429183177,0.002,2062.6,2062.2,6.00222957]
[1770429184586,0.002,2062.4,2062.0,0.001]
[1770429190182,0.002,2062.4,2062.1,4.16911697]
[1770429191359,0.002,2062.6,2062.2,4.16911697]
[1770429192367,0.002,2062.8,2062.2,4.16911697]
[1770429193282,0.002,2062.8,2062.4,4.16911697]
[1770429193469,0.002,2063.2,2062.6,4.16911697]
[1770429194195,0.32770637,2063.4,2062.6,4.16911697]
[1770429194575,0.32770637,2063.4,2062.8,4.16911697]
[1770429194771,1.21112295,2064.2,2063.1,4.16911697]
[1770429195368,1.21112295,2064.2,2063.2,5.38082693]
[1770429195567,1.21112295,2064.2,2063.3,1.02276668]
[1770429195568,0.99852698,2064.1,2063.3,1.02276668]
[1770429195968,0.33162765,2064.4,2063.4,4.16911697]
[1770429196204,1.54263586,2064.4,2063.7,4.16911697]
[1770429196368,0.33162765,2064.4,2063.7,4.16911697]
[1770429197393,1.54264544,2064.4,2063.5,1.2115205]
[1770429197690,1.54264544,2064.4,2063.6,1.21147156]
[1770429198080,0.63866679,2064.3,2063.6,1.21147156]
[1770429198403,0.63866679,2064.3,2063.6,1.21142953]
[1770429198577,0.33162765,2064.4,2063.7,1.21141636]
[1770429199098,1.54263521,2064.4,2063.8,4.16911697]
[1770429199301,0.002,2064.3,2063.8,4.16911697]
[1770429199599,0.002,2064.3,2063.9,5.38041596]
[1770429199799,0.002,2064.3,2063.9,6.88749675]
[1770429200286,0.002,2064.3,2063.6,4.21303655]
[1770429200471,0.002,2064.3,2063.8,1.21134078]
[1770429201308,0.002,2064.3,2063.6,1.21146927]
[1770429201498,0.002,2064.3,2063.6,4.16911697]
[1770429201798,0.002,2064.3,2063.6,4.21303655]
[1770429202023,0.002,2064.3,2063.7,5.07503153]
[1770429202509,1.21290575,2064.6,2063.7,5.07503153]
[1770429202510,0.002,2064.6,2064.1,4.16911697]
[1770429202710,1.21290667,2064.6,2063.8,4.16911697]
[1770429203276,1.21290667,2064.6,2063.7,0.90591456]
[1770429203584,1.21290667,2064.6,2063.5,9.01522602]
[1770429203585,1.21100561,2064.4,2063.5,1.21153295]
[1770429204977,1.21100561,2064.4,2063.5,1.21152754]
[1770429205392,1.21100561,2064.4,2063.4,4.84634252]
[1770429207420,1.21100561,2064.4,2063.4,9.01545949]
[1770429207811,0.60564599,2064.5,2063.5,4.16911697]
[1770429208122,1.21293427,2064.6,2063.7,4.16911697]
[1770429209029,0.002,2064.6,2063.7,4.16911697]
[1770429209207,1.21290099,2064.6,2063.7,4.16911697]
[1770429209541,0.002,2064.6,2063.8,1.21135768]
[1770429209928,3.93188009,2064.6,2063.7,1.21137866]
[1770429210129,0.39318801,2064.5,2063.7,1.21137866]
[1770429210802,0.39318801,2064.5,2063.7,1.2114138]
[1770429211009,0.39318801,2064.5,2063.9,0.001]
[1770429211208,0.002,2064.4,2063.9,0.001]
[1770429212018,5.1428857,2064.4,2063.9,0.001]
[1770429212330,3.92988009,2064.2,2063.6,0.001]
[1770429213637,1.03800962,2064.3,2063.6,0.001]
[1770429214140,2.24907537,2064.3,2063.6,0.001]
[1770429217042,6.15828488,2064.3,2063.6,0.001]
[1770429217241,1.1004316,2064.2,2063.6,0.001]
[1770429218610,4.84440625,2064.3,2063.6,4.20935115]
[1770429218611,1.21109287,2064.3,2063.6,4.20935115]
[1770429218812,1.21109287,2064.3,2063.6,0.001]
[1770429220418,8.75536405,2064.4,2063.6,0.001]
[1770429223113,3.90920951,2064.3,2063.6,0.001]
[1770429223722,4.84615454,2064.4,2063.6,0.001]
[1770429224040,0.60571601,2064.3,2063.6,0.001]
[1770429224586,3.90920951,2064.2,2063.6,0.001]
[1770429224715,3.90920951,2064.2,2063.0,5.42014984]
[1770429224918,3.90920951,2064.0,2063.0,5.42016851]
[1770429225246,0.51203911,2063.9,2063.5,0.001]
[1770429225446,0.51203911,2063.9,2063.0,5.42016851]
[1770429227145,1.21135768,2063.8,2062.7,5.42135483]
[1770429227312,1.21135768,2063.8,2062.8,4.20835115]
[1770429230371,1.72337024,2063.9,2063.0,4.20835115]
[1770429230533,1.72337024,2063.9,2063.2,4.20835115]
[1770429232363,1.72337024,2063.9,2063.3,1.21165123]
[1770429233658,1.72337024,2063.9,2063.3,4.20835115]
[1770429234032,1.72337024,2063.9,2063.2,1.21170996]
[1770429234234,5.63257975,2063.9,2063.1,1.2117251]
[1770429234434,1.04775839,2063.8,2063.1,1.2117251]
[1770429234950,1.04775839,2063.8,2063.2,4.20835115]
[1770429235272,1.72334229,2063.9,2063.2,4.20835115]
[1770429235436,0.51203911,2063.9,2063.2,4.20835115]
[1770429235838,0.51203911,2063.9,2063.3,1.21165123]
[1770429236039,0.51203911,2063.9,2063.3,5.42000238]
[1770429236973,0.51203911,2063.9,2063.4,4.20835115]
[1770429237470,1.72333833,2063.9,2063.4,4.20835115]
[1770429237861,1.72333833,2063.9,2063.4,4.20935115]
[1770429238562,0.51203911,2063.9,2063.4,4.20935115]
[1770429238759,1.21314058,2064.2,2063.5,4.20835115]
[1770429240665,0.002,2064.2,2063.5,4.20835115]
[1770429240844,0.002,2064.2,2063.5,5.4198811]
[1770429241677,0.002,2064.2,2063.6,4.20835115]
[1770429241890,0.002,2064.2,2063.7,0.54198811]
[1770429242183,0.002,2064.2,2063.5,4.20835115]
[1770429242606,3.91120951,2064.2,2063.4,0.001]
[1770429242754,3.90920951,2064.0,2062.7,0.001]
[1770429242951,0.51203911,2063.9,2063.0,4.20835115]
[1770429243386,0.002,2064.2,2063.2,4.20835115]
[1770429243897,0.002,2064.2,2063.5,4.20835115]
[1770429244902,0.002,2064.2,2063.7,4.20835115]
[1770429247189,0.002,2064.2,2063.8,1.21135768]
[1770429247397,0.002,2064.4,2063.9,4.01891877]
[1770429247598,0.002,2064.4,2064.0,4.01891877]
[1770429249769,0.002,2064.4,2064.1,1.21118162]
[1770429250468,0.002,2064.4,2064.0,4.01891877]
[1770429250679,0.002,2064.4,2064.0,5.23015234]
[1770429251311,0.002,2064.4,2064.1,4.21521381]
[1770429251498,1.21059512,2065.1,2064.3,4.21521381]
[1770429252208,1.21059512,2065.1,2064.3,1.21105264]
[1770429252583,1.21059512,2065.1,2064.3,5.42626645]
[1770429253093,1.21259512,2065.1,2064.3,5.42626645]
[1770429253399,1.21259512,2065.1,2064.3,4.21521381]
[1770429253600,0.63838149,2065.0,2064.1,1.21115808]
[1770429253802,1.21071238,2064.9,2064.1,4.21521381]
[1770429253997,5.48107283,2065.0,2064.2,4.21521381]
[1770429253998,1.84907612,2065.0,2064.2,4.21521381]
[1770429254880,0.63838149,2065.0,2064.2,4.21521381]
[1770429255078,0.002,2065.1,2064.2,4.21521381]
[1770429255079,1.21259815,2065.1,2064.2,4.21521381]
[1770429255887,0.002,2065.1,2064.4,4.21521381]
[1770429256088,0.002,2065.1,2064.4,4.25913339]
[1770429257397,0.002,2065.1,2064.6,4.21521381]
[1770429257909,0.002,2065.1,2064.5,1.21089677]
[1770429258401,0.64033604,2065.1,2064.5,1.21089677]
[1770429259107,0.002,2065.1,2064.5,4.84361758]
[1770429259407,0.002,2065.1,2064.6,1.21088028]
[1770429259993,0.002,2065.1,2064.5,1.21094102]
[1770429260304,0.002,2065.1,2064.5,1.21094368]
[1770429260503,0.002,2065.1,2064.4,1.21095791]
[1770429260704,0.640337,2065.1,2064.5,1.21094329]
[1770429260905,0.640337,2065.1,2064.4,2.23799097]
[1770429261077,0.640337,2065.1,2064.3,1.21106333]
[1770429261710,0.640337,2065.1,2064.2,5.42631109]
[1770429261892,0.640337,2065.1,2064.3,1.2110566]
[1770429261893,4.52576647,2065.1,2064.3,1.2110566]
[1770429262091,1.21065375,2065.0,2064.1,4.8447136]
[1770429262598,0.640337,2065.1,2064.2,4.21521381]
[1770429262907,1.85094359,2065.1,2064.4,4.21521381]
[1770429263110,1.85093652,2065.1,2064.4,4.21521381]
[1770429264407,1.85093652,2065.1,2064.4,1.21100561]
[1770429264803,1.85093652,2065.1,2064.3,1.21101974]
[1770429264999,0.001,2064.8,2064.1,5.42634388]
[1770429265222,0.001,2064.8,2064.1,4.21521381]
[1770429265523,0.001,2064.8,2064.2,1.21112174]
[1770429266295,0.001,2064.8,2064.0,1.21220584]
[1770429266821,3.88642947,2064.8,2064.0,0.001]
[1770429267006,4.60095943,2064.8,2064.0,0.001]
[1770429267805,4.60095943,2064.8,2063.8,0.001]
[1770429268003,3.88542947,2064.6,2063.8,0.001]
[1770429268628,3.88542947,2064.4,2063.8,0.001]
[1770429268920,3.88542947,2064.2,2063.8,0.001]
[1770429269302,0.50963764,2064.3,2063.8,0.001]
[1770429269494,4.39506711,2064.3,2063.8,0.001]
[1770429270318,4.39506711,2064.3,2063.2,1.21169116]
[1770429270895,5.09655242,2064.2,2063.2,1.21169116]